Cogmind - Beta 15 @@@ ROGUE MODE // 2025.05.20 @ 13:12:18 Player: mgobin-777 Result: Self-destructed Performance ------------- Evolutions (1) 500 Regions Visited (2) 400 Robots Destroyed (29) 145 Value Destroyed (511) 511 Prototype IDs (1) 20 Alien Tech Used (0) 0 Bonus (0) 0 TOTAL SCORE: 1576 Bonus ------- None Cogmind --------- Core Integrity 290/400 Matter 138/300 Energy 125/125 System Corruption 0% Temperature Cool (0) Movement Core (300) Ox5 Location -9/Materials Parts ------- > --- POWER (1) -------- Light Ion Engine > --- PROPULSION (2) --- (None) > --- UTILITY (3) ------ Small Storage Unit Core Shielding > --- WEAPON (3) ------- Autogun Autogun Hammer > --- INVENTORY (8) ---- Advanced Beam Cannon Autogun Mini Grenade Launcher Peak State ------------ > --- POWER ------------ Light Nuclear Core > --- PROPULSION ------- Improved Treads Improved Treads > --- UTILITY ---------- Improved Heat Sink Small Storage Unit Core Shielding > --- WEAPON ----------- Advanced Beam Cannon Autogun Hammer > --- INVENTORY -------- Light Ion Engine Heavy EM Pulse Gun Heavy EM Pulse Gun Autogun Autogun Mini Grenade Launcher [Rating: 19] Favorites ----------- Power Light Nuclear Core Engine Light Ion Engine Power Core Light Nuclear Core Propulsion Improved Treads Treads Improved Treads Wheel Compact Wheel Flight Unit Flight Unit Utility Small Storage Unit Device Improved Heat Sink Storage Small Storage Unit Protection Core Shielding Weapon Hammer Energy Gun Heavy EM Pulse Gun Energy Cannon Advanced Beam Cannon Ballistic Gun Autogun Impact Weapon Hammer Build | -11 -10 -9 ------- Run | Yrd Mat Mat Slots Evolved 2 | . . 2 Power . | . . . Propulsion . | . . . Utility 1 | . . 1 Weapon 1 | . . 1 Parts Attached 22 | 6 8 8 Power 3 | 1 1 1 Engine 2 | 1 . 1 Core 1 | . 1 . Reactor . | . . . Propulsion 7 | 2 2 3 Treads 2 | . 2 . Leg . | . . . Wheel 2 | 2 . . Hover . | . . . Flight 3 | . . 3 Utility 3 | 1 1 1 Device 1 | . . 1 Storage 1 | 1 . . Processor . | . . . Hackware . | . . . Protection 1 | . 1 . Artifact . | . . . Weapon 9 | 2 4 3 Energy Gun 2 | . 1 1 Energy Cannon 1 | . . 1 Ballistic Gun 5 | 2 2 1 Ballistic Cannon . | . . . Launcher . | . . . Special Weapon . | . . . Impact Weapon 1 | . 1 . Slashing Weapon . | . . . Piercing Weapon . | . . . Special Melee Weapon . | . . . Unidentified Prototypes 1 | . . 1 Parts Lost 9 | . 1 8 Power 1 | . . 1 Propulsion 5 | . 1 4 Utility 1 | . . 1 Weapon 2 | . . 2 Highest Loss Streak 5 | . 1 5 To Critical Strikes 1 | . . 1 Average Backups 4 | 1 4 4 Power . | . . . Propulsion . | . . . Utility . | . . . Weapon 3 | . 3 4 Tool/Special . | . . . Unused Backups 2 | 1 . 1 Power 1 | 1 . . Propulsion . | . . . Utility . | . . . Weapon 1 | . . 1 Tool/Special . | . . . Average Slot Usage (%) 94 | . 96 90 Engine 5 | . 5 3 Core 7 | . 7 6 Treads 13 | . 14 10 Wheel 8 | . 12 . Flight 2 | . . 7 Device 2 | . . 6 Storage 13 | . 14 11 Protection 12 | . 12 11 Energy Gun 5 | . 7 2 Energy Cannon 1 | . . 4 Ballistic Gun 11 | . 10 14 Impact Weapon 10 | . 10 11 Peak Build Rating 19 | 6 13 19 Average Rating 11 | 3 10 14 On Entrance 6 | . 6 13 Naked Turns . | . . . Heaviest Build 21 | 12 16 21 Greatest Support 46 | 26 46 46 Greatest Overweight (x) 5 | . . 5 Average Overweight (x) . | . . . Largest Inventory Capacity 8 | 8 8 8 Average Capacity 7 | 6 8 8 Most Carried 8 | 5 8 7 Average Carried 4 | . 4 4 Final Capacity 8 | 8 8 8 Final Carried 7 | . 7 3 Class Distribution -------------------- 100% | Mutant Dominant Class ---------------- Mutant | -10/Materials Mutant | -9/Materials Resources | -11 -10 -9 ----------- Run | Yrd Mat Mat Matter Collected 517 | 250 108 159 Remotely . | . . . Salvage Created 862 | . 474 388 Parts 58 | . 34 24 Haulers Intercepted 1 | . 1 . Recyclers Shooed 3 | . 3 . Parts Field Recycled . | . . . Retrieved Matter . | . . . Parts Self-Destructed . | . . . Prevented . | . . . Kills | -11 -10 -9 ------- Run | Yrd Mat Mat Combat Hostiles Destroyed 21 | . 8 13 Guns 16 | . 8 8 Cannons 3 | . . 3 AOE 2 | . . 2 Classes Destroyed 8 | . 7 1 Worker 2 | . 2 . Hauler 1 | . 1 . Recycler 2 | . 2 . Operator 1 | . 1 . Watcher 2 | . 2 . Swarmer 13 | . 6 7 Grunt 6 | . 2 4 Sentry 2 | . . 2 Best Kill Streak 6 | . 6 5 Combat Bots Only 5 | . 3 5 Max Kills in Single Turn 2 | . 1 2 Gunslinging . | . . . Exploded 2 | . . 2 Melee . | . . . Uniques/NPCs Destroyed . | . . . Combat | -11 -10 -9 -------- Run | Yrd Mat Mat Hostile Shots Fired 175 | . 64 111 Missed 44 | . 19 25 Hits 131 | . 45 86 Projectile 131 | . 45 86 Critical Strikes 3 | . . 3 Damage Taken 1296 | . 409 887 Core 193 | . 83 110 Absorbed by Shields . | . . . Redirected to Shielding 35 | . 14 21 Regen/Repaired (Parts) 73 | . 73 . Core Remaining (%) 83 | 100 66 . Volleys Fired 73 | . 40 33 Largest 2 | . 2 2 Hottest 91 | . 45 91 Shots Fired 106 | . 42 64 Gun 95 | . 42 53 Cannon 11 | . . 11 Launcher . | . . . Special . | . . . Kinetic 57 | . 12 45 Thermal 11 | . . 11 Explosive . | . . . Electromagnetic 38 | . 30 8 Robot Hit Streak 11 | . 6 11 Robot Miss Streak 3 | . 3 2 Penetration Max . | . . . Secondary Targets 1 | . . 1 Max Gunslinging Chain 1 | . . 1 Shots Hit Robots 74 | . 33 41 Core Hits 33 | . 17 16 Critical Kills 1 | . 1 . Critical Parts Destroyed 2 | . 2 . Critical Strikes 3 | . 3 . Destroy 1 | . 1 . Smash 2 | . 2 . Melee Attacks 8 | . 5 3 Impact 8 | . 5 3 Slashing . | . . . Piercing . | . . . Sneak Attacks 3 | . 3 . Combat Hostiles . | . . . Follow-up Attacks . | . . . Damage Inflicted 1412 | . 635 777 Guns 973 | . 442 531 Cannons 147 | . . 147 Explosions 64 | . . 64 Melee 228 | . 193 35 Ramming . | . . . Kinetic 576 | . 111 465 Thermal 211 | . . 211 Explosive . | . . . Electromagnetic 397 | . 331 66 Impact 228 | . 193 35 Slashing . | . . . Piercing . | . . . Highest Corruption . | . . . Average Corruption . | . . . Corruption Purged . | . . . Corruption Blocked . | . . . Overload Shots . | . . . Overflow Damage 48 | . 43 5 Projectiles . | . . . Explosions . | . . . Melee 48 | . 43 5 Knockbacks . | . . . Impact . | . . . Kinetic . | . . . Secondary . | . . . Self-Inflicted Damage 25 | . . 25 Shots 1 | . . 1 Rammed . | . . . Targets Rammed . | . . . Kicked . | . . . Crushed . | . . . Highest Temperature 120 | . 120 40 Average Temperature 32 | . 43 14 Received Heat Transfer 258 | . 78 180 Siege Activations . | . . . Martial Activations . | . . . Shielding Activations . | . . . Robots Disrupted . | . . . Combat Hostiles . | . . . Robots Corrupted . | . . . Combat Hostiles . | . . . Parts Fried . | . . . Impact Corruptions 4 | . 3 1 Robots Melted . | . . . Combat Hostiles . | . . . Parts Melted 1 | . . 1 Heat Transferred 359 | . . 359 Parts Sabotaged . | . . . Parts Stolen . | . . . Parts Stripped . | . . . Power Chain Reactions 1 | . . 1 Alert | -11 -10 -9 ------- Run | Yrd Mat Mat Maximum Alert Level . | . . . Low Security (%) 100 | 100 100 100 Level 1 . | . . . Level 2 . | . . . Level 3 . | . . . Level 4 . | . . . Level 5 . | . . . High Security . | . . . Max Security . | . . . Peak Influence 146 | . 133 146 Initial 20 | . . 20 Average 49 | . 44 65 Influence Increases 617 | . 291 326 Destroy 0b10 Robot/C 420 | . 160 260 Destroy 0b10 Robot/NC 40 | . 40 . Destroy Leader 86 | . 36 50 Successful Hack 10 | . 10 . Disable Machine 15 | . . 15 Destroy Structure 1 | . . 1 Lose Combat Pursuer 45 | . 45 . Influence Decreases 481 | . 242 239 Entered New Map 29 | . . 29 Time Decay 362 | . 232 130 Lost Part 90 | . 10 80 Squads Dispatched 3 | . 1 2 Investigation . | . . . Extermination . | . . . Reinforcement 3 | . 1 2 Assault . | . . . Garrison . | . . . Intercept . | . . . Searches Triggered . | . . . Construction Impeded 1 | . . 1 Haulers Reinforced . | . . . Active Scanning Responses . | . . . Cargo Convoy Interrupts . | . . . Stealth | -11 -10 -9 --------- Run | Yrd Mat Mat Distress Signals . | . . . Communications Jammed . | . . . Distress Signals . | . . . Times Spotted 32 | . 15 17 Peak Tracking Total 6 | . 4 6 Tactical Retreats 2 | . 2 . Traps | -11 -10 -9 ------- Run | Yrd Mat Mat Traps Triggered 2 | . 1 1 Indirectly . | . . . Trap Hack Attempts . | . . . Triggered . | . . . Disarmed . | . . . Reprogrammed . | . . . Reused . | . . . Traps Extracted . | . . . Installed . | . . . Triggered . | . . . Machines | -11 -10 -9 ---------- Run | Yrd Mat Mat Machines Disabled 1 | . . 1 Max in Single Turn 1 | . . 1 Machines Repaired . | . . . Machines Dismantled . | . . . Machines Sabotaged . | . . . Overloaded Fab Kills . | . . . Hacking | -11 -10 -9 --------- Run | Yrd Mat Mat Machines Accessed 2 | . 2 . Terminals 1 | . 1 . Fabricators . | . . . Repair Stations 1 | . 1 . Recycling Units . | . . . Scanalyzers . | . . . Garrison Access . | . . . Total Hacks 6 | . 6 . Successful 5 | . 5 . Failed 1 | . 1 . Catastrophic . | . . . Database Lockouts . | . . . Manual . | . . . Terminals 1 | . 1 . Fabricators . | . . . Repair Stations 5 | . 5 . Recycling Units . | . . . Scanalyzers . | . . . Garrison Access . | . . . Terminal Hacks 1 | . 1 . Transport Status 1 | . 1 . Fabricator Hacks . | . . . Repair Station Hacks 4 | . 4 . Scan Component 2 | . 2 . Repair 2 | . 2 . Recycling Unit Hacks . | . . . Scanalyzer . | . . . Garrison Access Hacks . | . . . Unauthorized Hacks . | . . . Terminals . | . . . Fabricators . | . . . Repair Stations . | . . . Recycling Units . | . . . Scanalyzers . | . . . Garrison Access . | . . . Data Cores Recovered . | . . . Used . | . . . Hacking Detections 1 | . 1 . Full Trace Events . | . . . Feedback Events . | . . . Feedback Blocked . | . . . Robot Schematics Acquired . | . . . Robots Built . | . . . Authchips . | . . . Time . | . . . Total Robot Build Rating . | . . . Part Schematics Acquired . | . . . Parts Built . | . . . Authchips . | . . . Time . | . . . Total Part Build Rating . | . . . Parts Repaired 2 | . 2 . Time 70 | . 70 . Parts Recycled . | . . . Recycled Matter . | . . . Retrieved Matter . | . . . Retrieved Components . | . . . Parts Scanalyzed . | . . . Part Schematics Acquired . | . . . Parts Damaged . | . . . Bothacking | -11 -10 -9 ------------ Run | Yrd Mat Mat Used RIF Installer . | . . . Robots Hacked . | . . . Non-combat . | . . . Combat . | . . . Robot Hacks Applied . | . . . Relay Couplers Released . | . . . Fabnet Peak Effective % . | . . . Robots Rewired . | . . . Allies Hacked . | . . . Hacks Repelled . | . . . Allies | -11 -10 -9 -------- Run | Yrd Mat Mat Total Allies . | . . . Largest Group . | . . . Highest-Rated Group . | . . . Highest-Rated Ally . | . . . Total Orders . | . . . Ally Attacks . | . . . Total Damage . | . . . Kills . | . . . Allies Corrupted . | . . . Allies Melted . | . . . Intel | -11 -10 -9 ------- Run | Yrd Mat Mat Active Infowar (turns) . | . . . Robot Analysis Total . | . . . Derelict Logs Recovered . | . . . Drone Launches . | . . . Drone Recoveries . | . . . Exploration | -11 -10 -9 ------------- Run | Yrd Mat Mat Turns Passed 1167 | 42 772 353 Spaces Moved 662 | 37 503 122 Core 12 | 12 . . Treads 248 | . 168 80 Legs . | . . . Wheels 360 | 25 335 . Hover . | . . . Flight 42 | . . 42 Fastest Speed 50 | 50 90 160 Average Speed 126 | 77 114 193 Slowest Speed 460 | 90 160 460 Overloaded Moves . | . . . Propulsion Burnouts . | . . . Robots Hopped . | . . . Potential Cave-ins . | . . . Cave-ins Triggered . | . . . Exploration Rate (%) 29 | 4 69 16 Regions Visited 2 Branch Regions . Pre-discovered Areas . | . . . Known Exits Taken . | . . . Unknown Exits Taken 2 | 1 1 . Scrap Searched . | . . . Spaces Dug . | . . . Terrain Destroyed . | . . . Melee . | . . . Projectile . | . . . AOE . | . . . Terrain Rammed . | . . . Walls Destroyed . | . . . Machines Disabled . | . . . Actions | -11 -10 -9 --------- Run | Yrd Mat Mat Total 875 | 50 648 177 Wait 71 | . 71 . Move 660 | 36 502 122 Hop . | . . . Pick Up 27 | 7 15 5 Fast Attach . | . . . Attach 17 | 6 4 7 Detach . | . . . Swap 13 | . 8 5 Drop 6 | 1 3 2 Fire 73 | . 40 33 Melee 8 | . 5 3 Ram . | . . . Kick . | . . . Crush . | . . . Escape Stasis . | . . . Rewire . | . . . Trap . | . . . Miscellaneous . | . . . Route ------- -11/Scrapyard -10/Materials (discovered 3 exits: [*Mat x3]) -9/Materials History --------- Turn | Location | Event 5 | -11/Scrapyard | Discovered new exit (range 16) 43 | -11/Scrapyard | Entered Materials 154 | -10/Materials | Discovered new exit (range 5) 301 | -10/Materials | Build established: Mutant 510 | -10/Materials | Discovered new exit (range 16) 661 | -10/Materials | Repaired Lgt. Nuclear Core 695 | -10/Materials | Repaired Hvy. EM Pulse Gun 765 | -10/Materials | Discovered new exit (range 11) 815 | -10/Materials | Entered another Materials area 815 | -9/Materials | Evolved 2 slots: Utility x1, Weapon x1 1044 | -9/Materials | Lost 5 parts (1p1n1u2w) 1168 | -9/Materials | Self-destructed Last Messages --------------- 01049_ Acquired 7 matter. 01050_ U-05 Engineer lays Concrete. 01056_ Acquired Flight Unit. 01060_ Acquired 11 matter. 01100_ ALERT: Hostiles spotted, dispatching reinforcements to Terminal M005. 01117_ K-01 Serf collects debris. 01119_ G-34 Mercenary destroyed. 01124_ K-01 Serf collects debris. 01126_ Flight Unit destroyed. 01129_ G-34 Mercenary destroyed. 01132_ Acquired 45 matter. 01143_ K-01 Serf collects debris. 01148_ Destroyed Heat Sink. 01148_ G-34 Mercenary system corrupted by crushing effect. 01151_ K-01 Serf collects debris. 01155_ Flight Unit destroyed. 01158_ G-34 Mercenary destroyed. 01158_ K-01 Serf collects debris. Map ----- +----------------------------------------------------+ | ??????????????????????????????????????????????? | | ??????????????????????????????????????????????? | | ??????????????????????????????????????????????? | | ??????????????????????????????????????????????? | | ??????????????????????????????????????????????? | | ??????????????????????????????????????????????? | | ??????????????????????????????????????????????? | | ?????????????????????????????#????????????????? | | ?????????????????????????????# ???????????????? | | ?????????????????????????????# ??????????????? | | ?????????????????????????????? ??????????????? | | ??????????????????????????????? ?????????????? | | ???????????????????????????????# ?????????????? | | ????????????????????????????####+#########????? | | ????????????????????????????# #????? | | ?????????????????????????###?# #????? | | ????????????????????###### ### * """ #????? | | ????????????????????# # """ #????? | | ????????????????????#"" # " """ #????? | | ????????????????????#"T + " [[[= #????? | | ????????????????????#"" ]# " " **% #????? | | ????????????????????# /[ #######+#####????? | | ????????????????????# /[ ######[%* #????? | | ????????????????????# [ wtk!%^[%% #????? | | ????????????????????# ##[![*!= #????? | | ????????????????????# % @= ##^ """ #????? | | ????????????????????######+#### """ ##+####?? | | ????????????????????????#=%! """ #??? ??? | | ???????????????????????## #?? ??? | | ?????????????????????? ^ #?? ??? | | ?????????????????????? ^ #? """??? | | ????????????????????? #?"""""?? | | ??????????????????? # """""?? | | ??????????????????####+## !!! # """"" ? | | ????????????????????? ?# !!! + """ # | | ???????????????????? ??###### !!! # # | | ???????????????????? ???????# # # | | ???????????????????# ????????# ^ #? # | | ???????????????????# ????????# ######### | | ???????????????????#?????????# # # | | ?????????????????????????????# # """ # | | ?????????????????????????????# # ] """ # | | ?????????????????????????????# # """ # | | ?????????????????????????????# # # | | ?????????????????????????????# + """ # | | ?????????????????????????????###### # """ # | | ????????????????????????########### # """ # | | ????????????????????????# # # # | | ????????????????????????# # # # | | ????????????????????????# """ # # # | +----------------------------------------------------+ Best States ------------- Heat Dissipation 42 Energy Generation 14 Energy Capacity 160 Matter Stores 291 Matter Capacity 300 Sight Range 16 Terrain Scan Density 10 Core Shielding 20 Evasion (%) 50 Recoil Reduction 2 Item Schematics ----------------- None Robot Schematics ------------------ None Fabricated ------------ Nothing Repaired ---------- Lgt. Nuclear Core | 34% | -10/Materials Hvy. EM Pulse Gun | 20% | -10/Materials Alien Tech Used ----------------- None Achievements -------------- None Challenges ------------ None Game ------ Seed MasterFocalMaul Manual? 0 Play Time 00:12:33 Cumulative 16.6 hours Start 2025.05.20 @ 12:57:58 End 2025.05.20 @ 13:12:18 Sessions 1 Manual Loads 0 Difficulty Rogue Special Mode None Game No. 57 Rogue 51 Adventurer 6 Explorer 0 Win Type - Total 0 Types 0/0/0/0/0/0/0/0/0/0 Lore% 9 Gallery% 18 Achievement% 19 Wizard Run 0 Options --------- Layout 1 ASCII 0 Keyboard 0 Movement Numpad Keybinds 0 Fullscreen 1 Font 24/Smallcaps Map View 50x40 Zoom Use 0% Tactical HUD 1 Map Filters NONE Filters NONE Steam 1 RUN: d50124a2-b493-49d0-b2d9-9ca3fd77f15c